bitfinex-derivatives/quotes_ETHF0:USTF0_20240910
["timestamp","ask_amount","ask_price","bid_price","bid_amount"]
[1725930360533,0.98490375,2352.4,2352.1,0.3635]
[1725930360732,2.51490375,2352.4,2351.9,1.53]
[1725930360926,1.08063,2352.4,2352.0,1.53]
[1725930361130,1.08063,2352.4,2352.0,2.27007]
[1725930361733,0.7406,2352.4,2352.0,2.27007]
[1725930362132,0.34004,2352.3,2352.0,1.93]
[1725930363839,0.34006,2352.2,2352.0,0.4]
[1725930364639,0.34005,2352.3,2352.0,0.4]
[1725930365335,0.34006,2352.2,2351.9,0.7552]
[1725930365732,0.74177,2352.1,2351.9,0.7552]
[1725930366041,0.4017,2352.1,2351.9,0.7552]
[1725930366338,0.3944,2352.0,2351.9,0.7552]
[1725930367435,0.34006,2352.2,2351.9,0.7552]
[1725930367436,0.58602459,2352.2,2351.9,0.7552]
[1725930367642,0.73445,2352.3,2352.0,0.3943]
[1725930367831,0.34005,2352.3,2352.0,0.3943]
[1725930368145,0.70373,2352.4,2352.0,3.37728334]
[1725930368634,0.3637,2352.4,2352.0,1.50721334]
[1725930368839,0.3637,2352.4,2351.9,0.74279146]
[1725930368840,2.0405,2352.0,2351.9,0.74279146]
[1725930369037,0.34013,2351.7,2351.5,4.082]
[1725930370536,3.14834,2351.9,2351.5,4.082]
[1725930370537,0.34014,2351.6,2351.5,4.082]
[1725930370735,0.34016,2351.5,2351.3,1.48695956]
[1725930371039,1.9155,2351.4,2351.3,0.3759]
[1725930371342,1.11817,2351.4,2351.3,0.3759]
[1725930371642,0.778,2351.4,2351.3,0.3759]
[1725930371937,1.09303,2351.7,2351.3,4.6287]
[1725930372236,0.34014,2351.6,2351.3,1.48695956]
[1725930372428,0.34015,2351.5,2351.3,0.3759]
[1725930373437,0.34016,2351.5,2351.3,0.3759]
[1725930374447,0.34015,2351.6,2351.3,0.3759]
[1725930375344,1.4093838,2351.7,2351.3,4.96887]
[1725930375345,0.6441838,2351.7,2351.3,4.96887]
[1725930375533,0.6441838,2351.7,2351.4,0.3911]
[1725930375844,0.389,2351.7,2351.4,0.3911]
[1725930376335,0.72912,2351.7,2351.4,0.3911]
[1725930376540,0.389,2351.7,2351.4,0.73126]
[1725930376733,0.389,2351.7,2351.4,0.3911]
[1725930376928,0.34014,2351.6,2351.4,0.3911]
[1725930377539,0.389,2351.7,2351.4,0.3911]
[1725930377540,0.72913,2351.7,2351.4,0.3911]
[1725930378745,0.34014,2351.6,2351.4,0.3911]
[1725930381349,0.72913,2351.7,2351.4,0.3911]
[1725930382241,0.34014,2351.6,2351.4,0.3911]
[1725930382440,0.389,2351.7,2351.3,4.80695956]
[1725930382441,0.34015,2351.5,2351.3,4.80695956]
[1725930382647,0.34017,2351.4,2351.3,0.3759]
[1725930382844,0.74177,2351.4,2351.3,0.3759]
[1725930383651,0.4016,2351.4,2351.3,0.3759]
[1725930384152,0.74177,2351.4,2351.3,0.3759]
[1725930384353,0.4016,2351.4,2351.3,0.3759]
[1725930385148,0.4016,2351.4,2351.1,4.82075956]
[1725930385354,0.21796301,2351.3,2351.1,5.21645956]
[1725930385753,0.11924962,2351.5,2351.1,1.50675956]
[1725930386057,0.11924962,2351.5,2351.1,0.3957]
[1725930386058,0.4033,2351.2,2351.1,0.3957]
[1725930386251,0.95180319,2351.2,2351.1,0.3957]
[1725930386451,0.61160319,2351.2,2351.1,0.3957]
[1725930388152,0.95180319,2351.2,2351.1,0.3957]
[1725930393050,0.95180319,2351.2,2350.9,4.43105956]
[1725930393245,0.73441,2351.1,2350.9,3.32]
[1725930393452,0.3942,2351.1,2350.9,3.32]
[1725930394050,0.61160319,2351.2,2350.8,1.88115956]
[1725930394253,0.34025,2350.9,2350.5,1.11105956]
[1725930394453,0.3879,2350.8,2350.7,1.53]
[1725930394653,0.30730319,2351.2,2350.7,1.53]
[1725930394654,0.34022,2351.1,2350.7,1.87027]
[1725930394853,0.3879,2351.2,2350.9,1.53]
[1725930395156,0.3879,2351.2,2351.1,1.53]
[1725930395360,0.93940357,2351.2,2351.1,1.53]
[1725930395559,0.93940357,2351.2,2351.1,1.9123]
[1725930395560,0.59920357,2351.2,2351.1,1.9123]
[1725930396256,0.34789474,2351.5,2351.1,1.9123]
[1725930396451,0.34018,2351.4,2351.1,1.9123]
[1725930396652,0.21409116,2351.3,2351.1,1.9123]
[1725930397650,0.55427116,2351.3,2351.1,1.9123]
[1725930397853,0.7585,2351.6,2351.1,1.9123]
[1725930398052,0.34017,2351.4,2351.1,1.9123]
[1725930398264,0.21341696,2351.3,2351.1,1.9123]
[1725930399065,0.21341696,2351.3,2351.1,2.2525]
[1725930399266,0.34017,2351.4,2351.2,0.3649]
[1725930399570,0.20879967,2351.3,2351.2,0.3649]
[1725930399965,0.34018,2351.4,2351.2,0.3649]
[1725930400258,0.21158707,2351.3,2351.2,0.3649]
[1725930400459,0.55176707,2351.3,2351.2,0.3649]
[1725930400662,0.34018,2351.4,2351.2,0.3649]
[1725930406862,0.3402,2351.2,2351.1,0.3823]
[1725930407082,0.5494279,2351.2,2351.1,0.3823]
[1725930407364,0.2092279,2351.2,2351.1,0.3823]
[1725930407867,0.5494279,2351.2,2351.1,0.3823]
[1725930408365,0.2092279,2351.2,2351.1,0.3823]
[1725930408557,0.3402,2351.2,2351.1,0.3823]
[1725930409260,0.55347074,2351.2,2351.1,0.3823]
[1725930410759,0.55347074,2351.2,2351.1,1.49335956]
[1725930412156,0.21327074,2351.2,2351.1,0.3823]
[1725930412364,0.85045,2351.4,2351.1,0.3823]
[1725930413060,0.3402,2351.2,2351.1,0.3823]
[1725930413261,0.55596855,2351.2,2351.1,0.3823]
[1725930413461,0.55596855,2351.2,2350.8,0.3928]
[1725930413462,4.46936855,2351.2,2350.8,0.3928]
[1725930413672,0.3926,2351.1,2350.9,0.3903]
[1725930413868,0.558149,2351.2,2351.0,0.3923]
[1725930415567,0.34021,2351.1,2351.0,0.3923]
[1725930415763,0.34021,2351.1,2350.9,0.3903]
[1725930415969,0.3879,2351.0,2350.9,0.3903]
[1725930417768,0.34021,2351.1,2350.9,0.73054]
[1725930419275,0.34021,2351.1,2351.0,7.93229104]
[1725930420481,0.34021,2351.1,2351.0,4.12825777]
[1725930420679,0.34021,2351.1,2351.0,4.12783124]
[1725930420881,4.59381,2351.1,2351.0,4.12783124]
[1725930421074,6.12381,2351.1,2351.0,3.5723143]
[1725930421583,6.12381,2351.1,2351.0,3.01537131]
[1725930422181,6.12381,2351.1,2351.0,3.5723143]
[1725930422377,6.12381,2351.1,2351.0,3.01539349]
[1725930422588,6.12381,2351.1,2351.0,3.5723143]
[1725930424782,6.12381,2351.1,2351.0,3.57175456]
[1725930426182,6.12381,2351.1,2350.8,0.3829]
[1725930426183,0.34023,2351.0,2350.8,0.3829]
[1725930427284,0.34022,2351.1,2350.8,0.3829]
[1725930427580,1.19264654,2351.2,2350.8,0.779]
[1725930427772,0.2167261,2351.2,2350.9,1.901]
[1725930427976,0.34019,2351.3,2351.0,1.53]
[1725930428188,1.12328,2351.4,2351.1,0.4021]
[1725930428385,0.34019,2351.3,2351.1,0.4021]
[1725930428692,0.5553115,2351.3,2351.1,0.4021]
[1725930429175,0.2151215,2351.3,2351.1,0.4021]
[1725930429589,0.5553015,2351.3,2351.1,0.4021]
[1725930430189,0.2151215,2351.3,2351.1,0.4021]
[1725930430794,0.5553015,2351.3,2351.1,0.4021]
[1725930430986,0.2151215,2351.3,2351.1,0.4021]
[1725930431495,0.5553015,2351.3,2351.1,0.4021]
[1725930433191,0.3402,2351.2,2351.1,0.4021]
[1725930433591,0.2151215,2351.3,2351.1,0.4021]
[1725930433892,2.55684159,2351.4,2351.1,0.4021]
[1725930433893,0.3402,2351.2,2351.1,0.4021]
[1725930434103,0.95165577,2351.2,2351.1,0.4021]
[1725930434287,0.95165577,2351.2,2351.1,3.97476508]
[1725930434487,0.95165577,2351.2,2351.1,3.57266508]
[1725930434684,2.48165577,2351.2,2351.1,1.90194088]
[1725930434894,2.48165577,2351.2,2351.1,1.11405948]
[1725930435692,0.34021,2351.1,2351.0,1.11405948]
[1725930435892,0.34021,2351.1,2351.0,3.01642619]
[1725930436490,0.34021,2351.1,2351.0,1.11405948]
[1725930436491,4.59381,2351.1,2351.0,1.11405948]
[1725930436689,6.12381,2351.1,2351.0,1.11405948]
[1725930436890,6.12381,2351.1,2350.9,1.11405948]
[1725930436891,0.34022,2351.0,2350.9,1.11405948]
[1725930437094,5.35392,2351.0,2350.9,1.11405948]
[1725930437489,0.34024,2350.9,2350.8,1.11405948]
[1725930437688,0.34024,2350.9,2350.8,3.01635751]
[1725930437899,0.34024,2350.9,2350.8,3.40015751]
[1725930438195,2.23944,2350.9,2350.8,3.01635751]
[1725930438999,6.49304,2350.9,2350.8,3.01635751]
[1725930439197,7.34365,2350.9,2350.8,3.01635751]
[1725930439506,7.34365,2350.9,2350.8,1.11405948]
[1725930440306,6.49304,2350.9,2350.8,1.11405948]
[1725930440996,6.49304,2350.9,2350.8,3.0157278]
[1725930441190,0.59415719,2350.9,2350.8,4.12790946]
[1725930441390,0.376,2351.0,2350.8,8.31774074]
[1725930441606,0.376,2351.0,2350.9,3.57201509]
[1725930441607,0.71622,2351.0,2350.9,3.57201509]
[1725930442000,0.34022,2351.0,2350.9,3.57201509]
[1725930443407,1.87022,2351.0,2350.9,3.57201509]
[1725930443905,2.12346467,2351.0,2350.9,3.57201509]
[1725930444404,2.12346467,2351.0,2350.9,4.68504129]
[1725930444606,2.12346467,2351.0,2350.9,3.01460903]
[1725930444803,6.37706467,2351.0,2350.9,3.01460903]
[1725930445108,6.37706467,2351.0,2350.9,1.11294071]
[1725930445408,0.34024,2350.9,2350.8,0.2088809]
[1725930445605,0.72834,2350.9,2350.8,3.5704914]
[1725930445907,4.98194,2350.9,2350.8,3.5704914]
[1725930447114,5.83255,2350.9,2350.8,3.5704914]
[1725930447805,1.57895,2350.9,2350.8,3.5704914]
[1725930448009,0.34025,2350.8,2350.7,2.05344677]
[1725930448203,2.62605,2350.8,2350.7,3.95003252]
[1725930449312,2.62605,2350.8,2350.7,0.3831]
[1725930450310,7.73029,2350.8,2350.7,0.3831]
[1725930450511,0.34028,2350.6,2350.5,0.3669]
[1725930452207,0.34028,2350.7,2350.5,0.3669]
[1725930452411,2.76144,2350.8,2350.5,0.3669]
[1725930452711,0.34028,2350.6,2350.5,0.3669]
[1725930455706,0.34028,2350.6,2350.5,0.733]
[1725930456215,2.76144,2350.8,2350.5,4.85670446]
[1725930456414,2.76144,2350.8,2350.6,3.56681309]
[1725930456710,0.34027,2350.7,2350.6,1.66934977]
[1725930456914,0.34027,2350.7,2350.6,3.56619362]
[1725930458518,0.34028,2350.6,2350.5,2.22624114]
[1725930458724,0.34035,2350.1,2350.0,2.0352171]
[1725930459021,1.53,2350.1,2350.0,3.93189815]
[1725930459226,1.53,2350.2,2350.0,2.26178105]
[1725930459425,1.87035,2350.2,2350.0,2.0351121]
[1725930459720,1.53,2350.2,2350.0,2.0351121]
[1725930460016,0.34035,2350.1,2350.0,2.0351121]
[1725930460222,0.34035,2350.1,2350.0,3.90246736]
[1725930460815,0.34035,2350.1,2350.0,2.23245526]
[1725930461323,0.3995,2350.4,2350.0,2.23245526]
[1725930461625,0.34033,2350.3,2350.1,3.53603707]
[1725930461825,0.34033,2350.3,2350.2,0.3825]
[1725930462222,1.87032,2350.4,2350.2,0.3825]
[1725930462423,1.87032,2350.4,2350.3,0.3868]
[1725930462616,1.87032,2350.4,2350.3,0.7711]
[1725930465120,1.53,2350.4,2350.3,0.7711]
[1725930465925,1.87031,2350.4,2350.3,0.7711]
[1725930468216,0.34035,2350.2,2349.8,0.34039]
[1725930468420,1.53,2350.1,2349.9,1.1434]
[1725930470723,1.87036,2350.1,2349.9,1.1434]
[1725930471422,1.87036,2350.1,2350.0,1.86441302]
[1725930472331,1.87036,2350.1,2350.0,1.86431974]
[1725930472536,1.72036,2350.1,2350.0,1.86431974]
[1725930473533,1.72036,2350.1,2349.9,2.8134121]
[1725930473926,1.72036,2350.1,2350.0,1.8642005]
[1725930474935,1.72036,2350.1,2350.0,1.86424703]
[1725930477432,1.72036,2350.1,2350.0,3.53425913]
[1725930477940,0.34037,2350.0,2349.9,2.0520121]
[1725930478234,2.09827,2350.0,2349.9,3.91703714]
[1725930478533,2.09827,2350.0,2349.9,2.24702504]
[1725930478740,2.3083517,2350.0,2349.9,3.91703714]
[1725930480134,2.3083517,2350.0,2349.9,3.9176993]
[1725930480341,1.9679817,2350.0,2349.9,3.9176993]
[1725930481239,2.3083517,2350.0,2349.9,3.9176993]
[1725930481638,1.9679817,2350.0,2349.9,3.9176993]
[1725930481838,1.5900817,2350.0,2349.9,3.9176993]
[1725930482138,0.2100817,2350.0,2349.9,2.2476872]
[1725930482340,1.72035,2350.2,2349.9,2.2476872]
[1725930482529,1.72035,2350.2,2350.0,2.06696859]
[1725930482728,1.72035,2350.2,2350.1,1.8660789]
[1725930483630,1.72035,2350.2,2350.1,1.86618164]
[1725930485736,1.38,2350.2,2350.0,2.06696859]
[1725930485940,0.34034,2350.2,2350.1,1.86638318]
[1725930486535,0.96284466,2350.3,2350.0,0.3987]
[1725930486833,1.72034,2350.2,2350.0,0.3987]
[1725930487434,0.62250466,2350.3,2350.0,0.3987]
[1725930487740,1.72035,2350.2,2350.0,0.3987]
[1725930488938,0.34035,2350.1,2350.0,0.3987]
[1725930489341,0.34035,2350.1,2350.0,4.6539]
[1725930490038,0.34035,2350.1,2350.0,0.3987]
[1725930490230,0.34035,2350.1,2350.0,4.6539]
[1725930492140,0.34035,2350.1,2350.0,0.3987]
[1725930492340,1.72035,2350.1,2350.0,2.26655774]
[1725930492543,1.72035,2350.1,2350.0,0.3987]
[1725930494446,1.72035,2350.1,2350.0,4.49241272]
[1725930495550,1.72035,2350.1,2350.0,7.83083029]
[1725930496043,1.72035,2350.1,2350.0,7.83262607]
[1725930498849,1.72035,2350.1,2350.0,7.83361342]
[1725930499350,1.72035,2350.1,2350.0,5.60653497]
[1725930501245,1.72035,2350.1,2350.0,8.3893364]
[1725930501453,1.72035,2350.1,2350.0,3.54019361]
[1725930502348,0.34037,2350.0,2349.9,1.67134862]
[1725930502549,0.91779267,2350.0,2349.9,3.54162457]
[1725930504144,1.28999267,2350.0,2349.9,3.54162457]
[1725930504349,1.28999267,2350.0,2349.9,1.87090189]
[1725930504755,1.28999267,2350.0,2349.9,2.37705099]
[1725930505148,1.20227899,2350.0,2349.9,2.37705099]
[1725930505539,1.54264899,2350.0,2349.9,2.37705099]
[1725930506046,1.20227899,2350.0,2349.9,2.37705099]
[1725930507045,1.54264899,2350.0,2349.9,2.37705099]
[1725930507352,1.54264899,2350.0,2349.9,4.04953923]
[1725930507958,1.54264899,2350.0,2349.9,2.37705099]
[1725930508157,1.54264899,2350.0,2349.9,4.04953262]
[1725930508955,1.54264899,2350.0,2349.9,3.54338352]
[1725930509349,1.54264899,2350.0,2349.9,3.5434549]
[1725930509552,1.54264899,2350.0,2349.9,8.3959734]
[1725930511456,1.54264899,2350.0,2349.9,8.39648297]
[1725930512558,2.39357899,2350.0,2349.9,3.54452892]
[1725930513257,2.39357899,2350.0,2349.9,1.87122718]
[1725930513652,2.39357899,2350.0,2349.9,3.54452892]
[1725930513958,1.54264899,2350.0,2349.9,3.54452892]
[1725930515253,1.17584899,2350.0,2349.9,3.54452892]
[1725930515756,0.92319267,2350.0,2349.9,3.54452892]
[1725930516062,0.92319267,2350.0,2349.9,3.92205836]
[1725930516261,0.92319267,2350.0,2349.9,3.92209799]
[1725930516467,0.92319267,2350.0,2349.9,0.3802]
[1725930519568,0.55099267,2350.0,2349.9,0.3802]
[1725930519869,0.21062267,2350.0,2349.9,0.3802]
[1725930520061,1.63177386,2350.1,2349.9,0.3802]
[1725930520262,1.97212386,2350.1,2350.0,0.4009]
[1725930520767,6.22732386,2350.1,2350.0,0.4009]
[1725930521768,0.25177386,2350.1,2350.0,0.4009]
[1725930521957,1.479,2350.5,2350.0,6.52353358]
[1725930522161,1.38,2350.3,2350.1,4.24667871]
[1725930522462,1.38,2350.3,2350.2,3.53642871]
[1725930522662,1.38,2350.3,2350.2,3.93192871]
[1725930522863,1.5909161,2350.3,2350.2,3.93192871]
[1725930523058,1.38,2350.3,2350.2,8.18712871]
[1725930524364,1.38,2350.3,2350.2,8.52746871]
[1725930524560,0.54948221,2350.5,2350.2,10.59473534]
[1725930524756,1.38,2350.3,2350.2,0.73584]
[1725930524961,1.38,2350.3,2350.2,6.34089201]
[1725930525969,1.38,2350.3,2350.2,6.00055201]
[1725930526269,1.38,2350.3,2350.2,8.22733938]
[1725930526966,1.38,2350.3,2350.2,8.2267052]
[1725930527170,1.38,2350.3,2350.2,6.00055201]
[1725930528270,1.38,2350.3,2350.2,8.22553494]
[1725930529963,1.38,2350.3,2350.2,8.21150436]
[1725930531572,1.72033,2350.3,2350.2,8.21150436]
[1725930533376,1.72033,2350.3,2350.2,4.48415674]
[1725930533561,1.38,2350.3,2350.2,4.48415674]
[1725930533966,1.38,2350.3,2350.2,4.4838719]
[1725930534168,1.38,2350.3,2350.2,8.7390719]
[1725930534468,1.72033,2350.3,2350.2,12.46549668]
[1725930534667,1.38,2350.3,2350.2,12.46549668]
[1725930534875,1.38,2350.3,2350.2,8.21029668]
[1725930535271,1.38,2350.3,2350.2,8.2100724]
[1725930536068,1.38,2350.3,2350.2,4.48367942]
[1725930536269,1.72033,2350.3,2350.2,4.48367942]
[1725930538275,1.72033,2350.3,2350.2,8.2045438]
[1725930538472,1.72033,2350.3,2350.2,8.20477421]
[1725930538667,1.72033,2350.3,2350.2,0.3955]
[1725930541567,0.34031,2350.5,2350.3,0.34032]
[1725930541771,0.34031,2350.5,2350.4,0.3992]
[1725930541772,1.72031,2350.5,2350.4,0.3992]
[1725930541974,1.38,2350.5,2350.4,0.3992]
[1725930542268,1.7203,2350.5,2350.4,0.3992]
[1725930543267,0.3403,2350.6,2350.4,0.3992]
[1725930543473,1.7203,2350.6,2350.5,0.3899]
[1725930543778,1.7203,2350.6,2350.5,0.7687]
[1725930544174,0.3403,2350.6,2350.5,0.7687]
[1725930544479,1.7203,2350.6,2350.5,0.7687]
[1725930546579,1.7203,2350.6,2350.5,0.3788]
[1725930546783,1.7203,2350.6,2350.5,2.23869455]
[1725930546983,1.7203,2350.6,2350.5,0.3788]
[1725930547380,1.7203,2350.6,2350.5,2.23877406]
[1725930547778,1.38,2350.6,2350.5,2.23877406]
[1725930548583,1.38,2350.6,2350.5,0.3788]
[1725930548976,1.38,2350.6,2350.5,2.23835626]
[1725930549379,1.38,2350.6,2350.5,2.23836413]
[1725930550078,1.38,2350.6,2350.5,3.90389931]
[1725930550970,0.21648246,2350.7,2350.5,3.90389931]
[1725930551173,0.099,2351.0,2350.9,0.34024]
[1725930551374,0.8503,2351.8,2350.9,0.34024]
[1725930551375,0.31045888,2351.3,2351.0,0.34021]
[1725930551676,0.34018,2351.3,2351.1,2.96951518]
[1725930551884,0.73907,2351.4,2351.1,1.1129]
[1725930552080,0.55726848,2351.3,2351.1,1.1129]
[1725930552577,1.93726848,2351.3,2351.1,1.1129]
[1725930553077,1.59707848,2351.3,2351.1,1.1129]
[1725930556979,1.93725848,2351.3,2351.1,1.1129]
[1725930557174,1.59707848,2351.3,2351.1,1.1129]
[1725930557575,0.369,2351.2,2351.1,1.1129]
[1725930558177,0.369,2351.2,2351.1,0.7394]
[1725930558377,0.369,2351.2,2351.1,0.3654]
[1725930558587,0.7455,2351.2,2351.1,0.3654]
[1725930560182,2.1255,2351.2,2351.1,0.3654]
[1725930560887,2.1255,2351.2,2350.9,0.769]
[1725930561190,2.1255,2351.2,2350.9,0.3923]
[1725930561191,0.3995,2351.1,2350.9,0.3923]
[1725930561386,1.38,2351.0,2350.9,0.3923]
[1725930562787,1.38,2351.0,2350.7,0.7565]
[1725930562989,1.38,2351.0,2350.7,1.48297]
[1725930563383,1.38,2350.9,2350.7,0.3648]
[1725930563687,0.7597,2350.8,2350.7,0.3648]
[1725930563890,0.7836,2350.8,2350.7,0.3648]
[1725930565385,0.7836,2350.8,2350.7,1.47270661]
[1725930565778,1.12385,2350.8,2350.7,1.10790661]
[1725930565985,0.34027,2350.7,2350.5,1.10790661]
[1725930566181,1.38,2350.6,2350.5,1.10790661]
[1725930568790,1.38,2350.6,2350.5,3.52139414]
[1725930569000,1.7474,2350.6,2350.5,3.52139414]
[1725930569482,1.7474,2350.6,2350.5,1.85840426]
[1725930569683,1.7474,2350.6,2350.5,3.52153186]
[1725930574091,1.38,2350.6,2350.5,3.52153186]
[1725930574392,1.38,2350.6,2350.5,3.86183186]
[1725930574586,1.38,2350.6,2350.5,2.19870426]
[1725930574787,1.38,2350.6,2350.5,1.85840426]
[1725930576286,1.38,2350.6,2350.5,4.0762851]
[1725930576891,1.38,2350.6,2350.4,2.20344553]
[1725930577187,1.38,2350.8,2350.6,0.34027]
[1725930579498,1.38,2350.8,2350.5,1.10904553]
[1725930579499,1.38,2350.8,2350.7,0.34027]
[1725930579693,1.38471567,2351.0,2350.7,0.34027]
[1725930579694,1.38,2350.9,2350.7,0.34027]
[1725930579994,1.72022,2351.1,2350.8,0.7808]
[1725930580193,0.21707848,2351.3,2351.1,0.3402]
[1725930580396,1.59707848,2351.3,2351.2,0.7808]
[1725930582494,1.93725848,2351.3,2351.2,0.7808]
[1725930583298,1.59707848,2351.3,2351.2,0.7808]
[1725930583504,1.38,2351.3,2351.2,1.121]
[1725930583894,2.61295017,2351.5,2351.2,6.14264553]
[1725930584098,0.9797714,2351.5,2351.2,2.23002553]
[1725930584399,2.3597714,2351.5,2351.2,1.88984553]
[1725930584605,2.1456,2351.5,2351.2,1.88984553]
[1725930585106,2.1456,2351.5,2351.3,0.34018]
[1725930585508,2.1456,2351.5,2351.4,0.376]
[1725930595819,1.7746,2351.5,2351.4,0.376]
[1725930598319,0.34014,2351.6,2351.4,4.96897]
[1725930598320,1.38,2351.6,2351.4,4.96897]
[1725930598512,1.38,2351.6,2351.4,0.71617]
[1725930598918,1.38,2351.6,2351.5,1.10904553]
[1725930599327,1.72014,2351.6,2351.5,1.10904553]
[1725930599618,2.10384,2351.6,2351.4,1.48504553]
[1725930600020,1.7637,2351.6,2351.4,1.48504553]
[1725930600223,1.7637,2351.6,2351.4,1.82521553]
[1725930600614,1.38,2351.5,2351.4,1.10904553]
[1725930600926,1.7637,2351.6,2351.4,1.10904553]
[1725930601221,1.38,2351.6,2351.4,1.44920553]
[1725930601422,1.38,2351.6,2351.5,0.3878]
[1725930601821,0.92288785,2351.7,2351.5,0.3878]
[1725930602425,0.34014,2351.6,2351.5,0.3878]
[1725930602621,2.1631,2351.8,2351.5,4.6406]
[1725930602622,0.7831,2351.8,2351.5,4.6406]
[1725930602924,0.4014,2351.8,2351.6,2.18017553]
[1725930603324,0.7687,2352.0,2351.6,2.18017553]
[1725930603325,0.378,2352.0,2351.7,5.36104553]
[1725930603625,0.3468919,2352.2,2351.9,1.10904553]
[1725930603822,1.9679519,2352.2,2352.0,0.747]
[1725930604026,0.34007,2352.1,2352.0,0.747]
[1725930604229,1.6278919,2352.2,2352.0,0.747]
[1725930604230,1.9679519,2352.2,2352.0,0.747]
[1725930604729,1.72007,2352.1,2351.9,1.10904553]
[1725930605026,1.38,2352.1,2351.9,1.10904553]
[1725930605227,1.37922422,2352.3,2352.0,0.34008]
[1725930605430,2.75922422,2352.3,2351.8,3.25804553]
[1725930606127,3.09926422,2352.3,2351.9,0.34009]
[1725930606830,3.34285955,2352.3,2351.9,0.34009]
[1725930607220,3.34285955,2352.3,2351.8,2.149]
[1725930607221,1.37922422,2352.3,2352.0,0.34008]
[1725930607526,1.37922422,2352.3,2351.9,0.34009]
[1725930607527,1.71926422,2352.3,2351.9,0.34009]
[1725930608330,0.7678,2352.3,2352.0,0.34008]
[1725930608525,0.7678,2352.3,2351.8,2.149]
[1725930608526,0.24611331,2352.4,2352.1,2.11766]
[1725930608718,0.21646089,2352.5,2352.2,0.778]
[1725930608719,0.55648089,2352.5,2352.2,0.778]
[1725930609317,0.21646089,2352.5,2352.2,0.778]
[1725930610216,1.38,2352.4,2352.2,0.778]
[1725930610421,1.38,2352.4,2351.9,0.34009]
[1725930610422,1.38,2352.3,2351.9,0.34009]
[1725930610624,0.72115,2352.2,2352.0,0.3666]
[1725930610818,1.38,2352.1,2351.7,1.72011]
[1725930611031,1.38,2351.8,2351.4,0.34016]
[1725930611231,2.1593,2351.7,2351.3,4.082]
[1725930611431,1.38,2351.5,2351.2,0.3641]
[1725930614232,1.72017,2351.4,2351.0,0.3666]
[1725930614436,1.38,2351.4,2351.0,0.3666]
[1725930614632,0.3945,2351.3,2351.0,0.3666]
[1725930614841,0.61090095,2351.3,2351.0,0.3666]
[1725930615041,0.3665,2351.2,2351.0,0.3666]
[1725930615941,0.3665,2351.2,2350.8,0.7681]
[1725930616238,2.0867,2351.2,2350.8,0.3873]
[1725930616438,1.7465,2351.2,2350.8,0.3873]
[1725930617734,2.0867,2351.2,2350.8,0.3873]
[1725930618038,1.7465,2351.2,2350.8,0.3873]
[1725930618834,2.0867,2351.2,2350.8,0.3873]
[1725930619138,2.0867,2351.2,2350.7,1.10904553]
[1725930619339,2.0867,2351.2,2350.6,3.76613829]
[1725930619340,2.4521,2351.2,2350.6,3.21161553]
[1725930619532,1.72021,2351.1,2350.7,1.10904553]
[1725930619727,1.38,2351.1,2350.6,3.21161553]
[1725930620446,2.1119,2351.2,2350.7,2.82929553]
[1725930620629,1.7465,2351.2,2350.8,0.34025]
[1725930620939,1.7465,2351.2,2351.0,1.38]
[1725930620940,0.3665,2351.2,2351.0,1.38]
[1725930621337,0.3665,2351.2,2351.1,0.3972]
[1725930624134,1.72017,2351.4,2351.1,0.3972]
[1725930624539,0.96816101,2351.5,2351.1,1.84644553]
[1725930624835,0.72356,2351.5,2351.1,1.84644553]
[1725930625036,0.34017,2351.4,2351.1,1.84644553]
[1725930625836,0.34018,2351.3,2351.1,1.50624553]
[1725930626248,0.70608,2351.3,2351.1,1.50624553]
[1725930626448,0.70609,2351.3,2351.1,1.50624553]
[1725930626641,0.70609,2351.3,2351.0,1.10904553]
[1725930626844,0.70609,2351.3,2351.1,1.47444553]
[1725930627243,0.3659,2351.3,2351.1,1.47444553]
[1725930627546,0.3659,2351.3,2351.1,1.81465553]
[1725930627941,0.3659,2351.3,2351.1,1.47444553]
[1725930628141,0.70608,2351.3,2351.1,1.47444553]
[1725930629142,0.70608,2351.3,2351.1,0.3654]
[1725930630147,1.7634,2351.5,2351.1,0.70561]
[1725930630148,0.34017,2351.4,2351.1,0.70561]
[1725930630752,0.34018,2351.3,2351.1,0.3654]
[1725930632154,0.34017,2351.4,2351.1,0.70561]
[1725930632955,0.7497,2351.5,2351.1,0.3654]
[1725930633150,0.7497,2351.5,2351.1,0.7629]
[1725930633348,0.34017,2351.4,2351.1,1.10311]
[1725930637049,0.34019,2351.3,2351.1,1.10904553]
[1725930637458,0.34019,2351.3,2351.1,1.48904553]
[1725930638148,0.34019,2351.3,2351.1,1.82925553]
[1725930638347,0.34019,2351.3,2351.1,1.48904553]
[1725930638547,0.34019,2351.3,2351.1,0.38]
[1725930638742,0.7497,2351.5,2351.1,1.82925553]
[1725930638743,0.34018,2351.4,2351.1,1.82925553]
[1725930638952,0.34018,2351.4,2351.1,1.82924553]
[1725930638953,0.34017,2351.4,2351.1,1.82924553]
[1725930639153,0.34017,2351.4,2351.1,2.19964553]
[1725930640351,0.34018,2351.3,2351.2,0.3972]
[1725930640746,0.34018,2351.4,2351.2,1.50624553]
[1725930641157,0.34018,2351.3,2351.2,1.50624553]
[1725930644248,0.34018,2351.3,2351.2,0.3972]
[1725930647957,1.08986,2351.5,2351.3,0.34018]
[1725930648157,1.08986,2351.5,2351.4,0.3708]
[1725930650161,1.08986,2351.5,2351.2,0.3972]
[1725930650162,1.08987,2351.5,2351.2,0.3972]
[1725930650355,1.08987,2351.5,2351.2,1.12729]
[1725930651262,0.7497,2351.5,2351.2,1.12729]
[1725930652261,0.7497,2351.5,2351.3,1.10904553]
[1725930652262,2.46986,2351.5,2351.3,1.10904553]
[1725930652457,2.46986,2351.5,2351.2,1.83913553]
[1725930652662,2.1297,2351.5,2351.2,1.49894553]
[1725930653163,2.46987,2351.5,2351.2,1.49894553]